fUSD/lending_fUSD_20251225
["ID","MTS","AMOUNT","RATE_DAILY","PERIOD"]
[399737494,1766645452403,-268.64849999,0.00016986,2]
[399737495,1766645452413,-238.98995802,0.00016986,2]
[399737496,1766645452423,-231.40654288,0.0001699,2]
[399737497,1766645452432,-231.40654288,0.0001699,2]
[399737498,1766645452442,-151.0,0.00016997,2]
[399737499,1766645452452,-1060.87558748,0.00016999,5]
[399737500,1766645452462,-1060.87558749,0.00016999,5]
[399737501,1766645452471,-300.0,0.00016999,2]
[399737502,1766645452481,-500.0,0.00016999,2]
[399737503,1766645452491,-500.0,0.00016999,2]
[399737504,1766645452500,-500.0,0.00016999,2]
[399737505,1766645452511,-500.0,0.00016999,2]
[399737506,1766645452521,-526.94684762,0.00016999,2]
[399737507,1766645452531,-695.14,0.00016999,2]
[399737508,1766645452541,-695.14,0.00016999,2]
[399737509,1766645452551,-695.14,0.00016999,2]
[399737510,1766645452561,-695.14,0.00016999,2]
[399737511,1766645452572,-695.14,0.00016999,2]
[399737512,1766645452581,-695.14,0.00016999,2]
[399737513,1766645452592,-695.14,0.00016999,2]
[399737514,1766645452603,-695.14,0.00016999,2]
[399737515,1766645452614,-695.14,0.00016999,2]
[399737516,1766645452624,-695.14,0.00016999,2]
[399737517,1766645452635,-695.14,0.00016999,2]
[399737518,1766645452645,-695.14,0.00016999,2]
[399737519,1766645452655,-695.14,0.00016999,2]
[399737520,1766645452666,-695.14,0.00016999,2]
[399737521,1766645452677,-695.14,0.00016999,2]
[399737522,1766645452687,-695.14,0.00016999,2]
[399737523,1766645452701,-695.21367143,0.00016999,2]
[399737524,1766645452712,-510.32017252,0.00016999,2]
[399737525,1766645452723,-500.0,0.00016999,2]
[399737526,1766645452733,-500.0,0.00016999,2]
[399737527,1766645452743,-500.0,0.00016999,2]
[399737528,1766645452753,-587.42809654,0.00016999,2]
[399737529,1766645452763,-300.0,0.00016999,2]
[399737530,1766645452773,-666.0,0.00016999,2]
[399737531,1766645452783,-825.23,0.00016999,2]
[399737532,1766645452792,-825.23,0.00016999,2]
[399737533,1766645452802,-825.23,0.00016999,2]
[399737534,1766645452812,-825.23,0.00016999,2]
[399737535,1766645452822,-825.23,0.00016999,2]
[399737536,1766645452832,-825.23,0.00016999,2]
[399737537,1766645452841,-825.23,0.00016999,2]
[399737538,1766645452852,-825.23,0.00016999,2]
[399737539,1766645452862,-825.23,0.00016999,2]
[399737540,1766645452872,-825.23,0.00016999,2]
[399737541,1766645452882,-825.23,0.00016999,2]
[399737542,1766645452892,-825.23,0.00016999,2]
[399737543,1766645452901,-825.23,0.00016999,2]
[399737544,1766645452912,-825.23,0.00016999,2]
[399737545,1766645452922,-825.23,0.00016999,2]
[399737546,1766645452933,-825.43949058,0.00016999,2]
[399737547,1766645452943,-300.0,0.00016999,2]
[399737548,1766645452952,-500.0,0.00016999,2]
[399737549,1766645452962,-500.0,0.00016999,2]
[399737550,1766645452972,-666.0,0.00016999,2]
[399737551,1766645452981,-500.0,0.00016999,2]
[399737552,1766645452992,-500.0,0.00016999,2]
[399737553,1766645453002,-500.0,0.00016999,2]
[399737554,1766645453011,-500.0,0.00016999,2]
[399737555,1766645453021,-500.0,0.00016999,2]
[399737556,1766645453030,-500.0,0.00016999,2]
[399737557,1766645453040,-500.0,0.00016999,2]
[399737558,1766645453050,-500.0,0.00016999,2]
[399737559,1766645453059,-500.0,0.00016999,2]
[399737560,1766645453069,-500.0,0.00016999,2]
[399737561,1766645453079,-500.0,0.00016999,2]
[399737562,1766645453089,-470.9790947,0.00016999,2]
[399737563,1766645453098,-500.0,0.00016999,2]
[399737564,1766645453109,-500.0,0.00016999,2]
[399737565,1766645453118,-500.0,0.00016999,2]
[399737566,1766645453127,-500.0,0.00016999,2]
[399737567,1766645453137,-500.0,0.00016999,2]
[399737568,1766645453147,-500.0,0.00016999,2]
[399737569,1766645453157,-500.0,0.00016999,2]
[399737570,1766645453168,-500.0,0.00016999,2]
[399737571,1766645453178,-500.0,0.00016999,2]
[399737572,1766645453188,-514.26394542,0.00016999,2]
[399737573,1766645453199,-500.0,0.00016999,2]
[399737574,1766645453209,-500.0,0.00016999,2]
[399737575,1766645453219,-500.0,0.00016999,2]
[399737576,1766645453229,-500.0,0.00016999,2]
[399737577,1766645453239,-500.0,0.00016999,2]
[399737578,1766645453249,-500.0,0.00016999,2]
[399737579,1766645453259,-500.0,0.00016999,2]
[399737580,1766645453269,-500.0,0.00016999,2]
[399737581,1766645453279,-500.0,0.00016999,2]
[399737582,1766645453289,-500.0,0.00016999,2]
[399737583,1766645453299,-500.0,0.00016999,2]
[399737584,1766645453309,-313.70462567,0.00016999,2]
[399737585,1766645453319,-521.79,0.00016999,2]
[399737586,1766645453328,-521.79,0.00016999,2]
[399737587,1766645453339,-521.79,0.00016999,2]
[399737588,1766645453349,-521.79,0.00016999,2]
[399737589,1766645453359,-500.0,0.00016999,2]
[399737590,1766645453370,-521.79,0.00016999,2]
[399737591,1766645453379,-500.0,0.00016999,2]
[399737592,1766645453389,-521.79,0.00016999,2]
[399737593,1766645453399,-500.0,0.00016999,2]
[399737594,1766645453409,-521.79,0.00016999,2]
[399737595,1766645453419,-644.18528061,0.00016999,2]
[399737596,1766645453429,-521.79,0.00016999,2]
[399737597,1766645453439,-521.79,0.00016999,2]
[399737598,1766645453449,-521.79,0.00016999,2]
[399737599,1766645453459,-521.79,0.00016999,2]
[399737600,1766645453469,-521.79,0.00016999,2]
[399737601,1766645453479,-521.79,0.00016999,2]
[399737602,1766645453488,-521.88956399,0.00016999,2]
[399737603,1766645453498,-500.0,0.00016999,2]
[399737604,1766645453508,-500.0,0.00016999,2]
[399737605,1766645453519,-325.50708254,0.00016999,2]
[399737606,1766645453530,-610.34,0.00016999,2]
[399737607,1766645453540,-610.34,0.00016999,2]
[399737608,1766645453551,-610.34,0.00016999,2]
[399737609,1766645453561,-610.34,0.00016999,2]
[399737610,1766645453571,-610.34,0.00016999,2]
[399737611,1766645453581,-610.34,0.00016999,2]
[399737612,1766645453592,-610.34,0.00016999,2]
[399737613,1766645453603,-610.34,0.00016999,2]
[399737614,1766645453613,-610.34,0.00016999,2]
[399737615,1766645453623,-610.34,0.00016999,2]
[399737616,1766645453634,-610.34,0.00016999,2]
[399737617,1766645453643,-610.34,0.00016999,2]
[399737618,1766645453654,-610.34,0.00016999,2]
[399737619,1766645453664,-610.43830899,0.00016999,2]
[399737620,1766645453673,-300.0,0.00016999,2]
[399737621,1766645453683,-500.0,0.00016999,2]
[399737622,1766645453696,-500.0,0.00016999,2]
[399737623,1766645453707,-500.0,0.00016999,2]
[399737624,1766645453717,-177.66511868,0.00016999,2]
[399737625,1766645453727,-765.26,0.00016999,2]
[399737626,1766645453739,-765.26,0.00016999,2]
[399737627,1766645453749,-765.26,0.00016999,2]
[399737628,1766645453759,-765.26,0.00016999,2]
[399737629,1766645453769,-765.26,0.00016999,2]
[399737630,1766645453779,-765.26,0.00016999,2]
[399737631,1766645453789,-765.26,0.00016999,2]
[399737632,1766645453799,-765.26,0.00016999,2]
[399737633,1766645453809,-765.26,0.00016999,2]
[399737634,1766645453820,-765.26,0.00016999,2]
[399737635,1766645453830,-765.26,0.00016999,2]
[399737636,1766645453840,-765.26,0.00016999,2]
[399737637,1766645453851,-765.26,0.00016999,2]
[399737638,1766645453861,-765.26,0.00016999,2]
[399737639,1766645453871,-765.26,0.00016999,2]
[399737640,1766645453880,-765.30911146,0.00016999,2]
[399737641,1766645453890,-300.0,0.00016999,2]
[399737642,1766645453900,-666.0,0.00016999,2]
[399737643,1766645453909,-500.0,0.00016999,2]
[399737644,1766645453919,-508.51346411,0.00016999,2]
[399737645,1766645453928,-300.0,0.00016999,2]
[399737646,1766645453937,-5559857.74704814,0.00017,2]
[399737647,1766645454166,-605.84516606,0.00017,2]
[399737648,1766645454250,-9068.64992968,0.00017,2]
[399737649,1766645454271,-351.80333432,0.00017,2]
[399737650,1766645454282,-410.52,0.00017,2]
[399737651,1766645454312,-374.5142095,0.00017,2]
[399737652,1766645455432,-1.7e-07,0.00017,2]
[399737653,1766645455472,-290993.69112035,0.00017,2]
[399737654,1766645455484,-59110.34930554,0.00017,2]
[399737655,1766645455557,194.59845631,0.0001081,2]
[399737656,1766645455624,-19031.5273683,0.00017,2]
[399737657,1766645455636,-686.78059288,0.00017,2]
[399737658,1766645455658,-272.1645,0.00017,2]
[399737659,1766645455671,-1238.7,0.00017,2]
[399737660,1766645455929,-151.0,0.00013928,2]
[399737661,1766645455939,-1283.61950838,0.00017,2]
[399737662,1766645455951,-3191.69079946,0.00017,2]
[399737663,1766645455963,-96138.97844491,0.00017,2]
[399737664,1766645455983,-1405.02414376,0.00017,2]
[399737665,1766645455994,-629.8598895,0.00017,2]
[399737666,1766645456006,-318.19988001,0.00017,2]
[399737667,1766645456019,-428.14468468,0.00017,2]
[399737668,1766645456031,-608.21731146,0.00017,2]
[399737669,1766645456043,-4574.0404576,0.00017,2]
[399737670,1766645456087,194.59845631,0.00010909,2]
[399737671,1766645470118,454.00652816,0.0001081,2]
[399737674,1766645532129,10000.01,0.00010711,2]
[399737695,1766645580822,-170.17887747,0.00010611,2]
[399737696,1766645580993,-8923.54852136,0.0001071,2]
[399737697,1766645581113,-10000.01,0.0001071,2]
[399737698,1766645581238,-10000.01,0.0001071,2]
[399737699,1766645584563,-10000.01,0.0001071,2]
[399737700,1766645584803,-10000.01,0.0001071,2]
[399737701,1766645588623,-10000.01,0.0001071,2]
[399737702,1766645588792,-10000.01,0.0001071,2]
[399737703,1766645595857,-1200.0,0.00010709,2]
[399737704,1766645595909,-7600.01,0.0001071,2]
[399737705,1766645598959,-10000.01,0.0001071,2]
[399737706,1766645606048,-10000.01,0.0001071,2]
[399737707,1766645612291,156.0,0.0003287,120]
[399737708,1766645614153,-10000.01,0.0001071,2]
[399737709,1766645621336,-10000.01,0.0001071,2]
[399737710,1766645629562,-10000.01,0.0001071,2]
[399737712,1766645636823,-10000.01,0.0001071,2]
[399737717,1766645707090,-158.10105491,0.0001061,2]
[399737718,1766645710298,-221.46362742,0.0001061,2]
[399737719,1766645722011,-278.53637258,0.0001061,2]
[399737720,1766645725480,-437.23700111,0.0001061,2]
[399737721,1766645782517,-167.32342631,0.0001061,2]
[399737722,1766645782542,-72.98950439,0.0001061,2]
[399737723,1766645782567,-59.6870693,0.00010708,2]
[399737724,1766645785274,-228.26239256,0.00010708,2]
[399737725,1766645786743,-202.2247571,0.00010708,2]
[399737726,1766645789180,-222.8058211,0.00010708,2]
[399737727,1766645791127,-300.0,0.00010708,2]
[399737728,1766645801017,-187.01995994,0.00010708,2]
[399737729,1766645801052,-300.0,0.00010708,2]
[399737730,1766645801089,-500.0,0.00010709,2]
[399737731,1766645801123,-189.56073572,0.00010709,2]
[399737732,1766645801159,-184.20327918,0.00010709,2]
[399737733,1766645801194,-500.0,0.00010709,2]
[399737734,1766645801229,-407.00678699,0.00010709,2]
[399737735,1766645801264,-150.0,0.00010709,2]
[399737736,1766645801297,-208.07500383,0.00010709,2]
[399737737,1766645805479,500.0,0.00010609,2]
[399737738,1766645812048,-325.56477699,0.0001071,2]
[399737739,1766645814003,-258.31429703,0.0001071,2]
[399737740,1766645815773,-521.77459167,0.0001071,2]
[399737741,1766645818884,-279.46116403,0.0001071,2]
[399737742,1766645821497,-390.0,0.0001071,2]
[399737743,1766645822247,150.0,0.00010709,2]
[399737744,1766645827719,233.0,0.00032,120]
[399737745,1766645840233,500.0,0.00010709,2]
[399737746,1766645840298,500.0,0.00010709,2]
[399737747,1766645840410,500.0,0.00010709,2]
[399737748,1766645840470,500.0,0.00010709,2]
[399737749,1766645840536,500.0,0.00010709,2]
[399737750,1766645840599,500.0,0.00010709,2]
[399737751,1766645840657,500.0,0.00010709,2]
[399737752,1766645840726,500.0,0.00010709,2]
[399737753,1766645840788,98.27846868,0.00010709,2]
[399737754,1766645840827,401.72153132,0.00010709,2]
[399737755,1766645840887,500.0,0.00010709,2]
[399737756,1766645840951,500.0,0.00010709,2]
[399737757,1766645841019,500.0,0.00010709,2]
[399737758,1766645841077,500.0,0.00010709,2]
[399737759,1766645841151,500.0,0.00010709,2]
[399737760,1766645841223,500.0,0.00010709,2]
[399737761,1766645841286,500.0,0.00010709,2]
[399737762,1766645841986,500.0,0.00010709,2]
[399737763,1766645842038,500.0,0.00010709,2]
[399737764,1766645842096,500.0,0.00010709,2]
[399737765,1766645842159,500.0,0.00010709,2]
[399737766,1766645842220,500.0,0.00010709,2]
[399737767,1766645842291,500.0,0.00010709,2]
[399737768,1766645846775,501.8510134,0.0001061,2]
[399737769,1766645854599,500.0,0.00010709,2]
[399737770,1766645854684,500.0,0.00010709,2]
[399737771,1766645854782,500.0,0.00010709,2]
[399737772,1766645854875,500.0,0.00010709,2]
[399737773,1766645854968,500.0,0.00010709,2]
[399737774,1766645855056,96.43745528,0.00010709,2]
[399737775,1766645855090,403.56254472,0.00010709,2]
[399737776,1766645855144,500.0,0.00010709,2]
[399737777,1766645855233,500.0,0.00010709,2]
[399737778,1766645855333,500.0,0.00010709,2]
[399737779,1766645855433,500.0,0.00010709,2]
[399737781,1766645881319,300.0,0.00010709,2]
[399737782,1766645881713,2500.0,0.0001061,2]
[399737783,1766645887727,500.0,0.00010709,2]
[399737784,1766645887790,334.90475089,0.00010709,2]
[399737785,1766645889227,1200.0,0.00010709,2]
[399737786,1766645893549,241.5154,0.0001061,2]
[399737787,1766645909733,441.72819276,0.00010709,2]
[399737788,1766645927903,500.0,0.00010709,2]
[399737789,1766645927953,500.0,0.00010709,2]
[399737790,1766645928010,173.05543298,0.00010709,2]
[399737795,1766645981786,699.0,0.0003287,120]
[399737796,1766645989155,334.56734228,0.0001061,2]
[399737797,1766646001523,300.0,0.00010709,2]
[399737798,1766646001570,1200.0,0.00010709,2]
[399737799,1766646001636,300.0,0.00010709,2]
[399737800,1766646001723,300.0,0.00010709,2]
[399737801,1766646001940,150.0,0.00010709,2]
[399737802,1766646003809,2449.8674,0.0001061,2]
[399737803,1766646009956,1074.37148109,0.0001061,2]
[399737804,1766646009986,1425.62851891,0.0001061,2]
[399737807,1766646034003,-643.53439744,0.0001071,2]
[399737808,1766646034094,-206.15679975,0.0001071,2]
[399737809,1766646034335,-9363.02246663,0.0001071,2]
[399737810,1766646034422,-161.5512423,0.0001071,2]
[399737811,1766646034527,-1627.99390681,0.0001071,2]
[399737812,1766646034640,-160.7515155,0.0001071,2]
[399737813,1766646034736,-170.8649845,0.0001071,2]
[399737814,1766646074115,151.0,0.00010707,2]
[399737815,1766646082601,-218.4614165,0.0001071,2]
[399737816,1766646086483,-286.11407827,0.0001071,2]
[399737817,1766646089908,-172.38351678,0.0001071,2]
[399737819,1766646093052,5314.753,0.00010496,2]
[399737820,1766646093103,370.957,0.00010496,2]
[399737821,1766646121281,300.0,0.00010709,2]
[399737822,1766646125312,200.0,0.0001071,2]
[399737823,1766646126008,207.4,0.0001071,2]
[399737824,1766646129430,223.04489484,0.0001061,2]
[399737825,1766646131461,151.0,0.0001071,2]
[399737826,1766646131863,500.0,0.0001071,2]
[399737827,1766646132079,151.0,0.0001071,2]
[399737828,1766646132538,500.0,0.0001071,2]
[399737829,1766646132741,151.0,0.0001071,2]
[399737830,1766646133302,151.0,0.0001071,2]
[399737831,1766646133612,203.22658625,0.0001071,2]
[399737832,1766646133641,296.77341375,0.0001071,2]
[399737833,1766646133917,151.0,0.0001071,2]
[399737834,1766646134259,500.0,0.0001071,2]
[399737835,1766646134522,151.0,0.0001071,2]
[399737836,1766646134897,500.0,0.0001071,2]
[399737837,1766646135160,151.0,0.0001071,2]
[399737838,1766646135503,500.0,0.0001071,2]
[399737839,1766646135755,151.0,0.0001071,2]
[399737840,1766646136086,500.0,0.0001071,2]
[399737841,1766646136391,151.0,0.0001071,2]
[399737842,1766646136696,500.0,0.0001071,2]
[399737843,1766646136795,500.0,0.0001071,2]
[399737844,1766646137030,151.0,0.0001071,2]
[399737845,1766646137325,500.0,0.0001071,2]
[399737846,1766646137418,500.0,0.0001071,2]
[399737847,1766646137628,151.0,0.0001071,2]
[399737848,1766646137919,500.0,0.0001071,2]
[399737849,1766646138021,500.0,0.0001071,2]
[399737850,1766646138289,151.0,0.0001071,2]
[399737851,1766646138597,500.0,0.0001071,2]
[399737852,1766646138646,500.0,0.0001071,2]
[399737853,1766646138898,151.0,0.0001071,2]
[399737854,1766646139281,500.0,0.0001071,2]
[399737855,1766646139583,151.0,0.0001071,2]
[399737856,1766646139889,500.0,0.0001071,2]
[399737857,1766646140207,151.0,0.0001071,2]
[399737858,1766646140541,500.0,0.0001071,2]
[399737859,1766646140817,151.0,0.0001071,2]
[399737860,1766646141128,391.23658625,0.0001071,2]
[399737861,1766646141163,108.76341375,0.0001071,2]
[399737862,1766646141418,151.0,0.0001071,2]
[399737863,1766646141721,500.0,0.0001071,2]
[399737864,1766646142016,151.0,0.0001071,2]
[399737865,1766646142367,500.0,0.0001071,2]
[399737866,1766646142678,151.0,0.0001071,2]
[399737867,1766646142930,500.0,0.0001071,2]
[399737868,1766646143281,151.0,0.0001071,2]
[399737869,1766646145207,-174.72569709,0.0001071,2]
[399737870,1766646147037,200.0,0.0001071,2]
[399737871,1766646147416,-218.97806842,0.0001071,2]
[399737872,1766646149747,-243.11394327,0.0001071,2]
[399737873,1766646152027,151.0,0.0001071,2]
[399737874,1766646152949,500.0,0.00010709,2]
[399737875,1766646152999,500.0,0.00010709,2]
[399737876,1766646153057,500.0,0.00010709,2]
[399737877,1766646153110,151.0,0.0001071,2]
[399737878,1766646153164,500.0,0.00010709,2]
[399737879,1766646153223,381.92667767,0.00010709,2]
[399737880,1766646153306,151.0,0.0001071,2]
[399737881,1766646153570,6965.08332233,0.0001061,2]
[399737882,1766646153597,10000.01,0.0001061,2]
[399737883,1766646153624,1965.74317767,0.0001061,2]
[399737884,1766646153660,-215.48741753,0.0001071,2]
[399737885,1766646153879,151.0,0.0001071,2]
[399737886,1766646154498,151.0,0.0001071,2]
[399737887,1766646155084,151.0,0.0001071,2]
[399737888,1766646155123,-469.56049341,0.0001071,2]
[399737889,1766646155714,151.0,0.0001071,2]
[399737890,1766646156315,151.0,0.0001071,2]
[399737891,1766646156765,500.0,0.0001071,2]
[399737892,1766646156938,151.0,0.0001071,2]
[399737893,1766646157569,151.0,0.0001071,2]
[399737894,1766646158167,151.0,0.0001071,2]
[399737895,1766646158377,500.0,0.00032876,120]
[399737896,1766646159483,2500.0,0.0001061,2]
[399737897,1766646175146,999.0,0.00010995,3]
[399737899,1766646181327,300.0,0.00010709,2]
[399737900,1766646181913,150.0,0.00010709,2]
[399737901,1766646182979,300.0,0.00010709,2]
[399737902,1766646187037,-276.18542143,0.0001071,2]
[399737903,1766646189638,1200.0,0.00010709,2]
[399737904,1766646190330,-238.02179816,0.0001071,2]
[399737905,1766646201897,500.0,0.00010709,2]
[399737906,1766646201953,500.0,0.00010709,2]
[399737907,1766646202011,500.0,0.00010709,2]
[399737908,1766646202065,376.26682233,0.00010709,2]
[399737909,1766646202096,123.73317767,0.00010709,2]
[399737910,1766646202149,500.0,0.00010709,2]
[399737911,1766646202196,616.8985,0.0001061,2]
[399737912,1766646202251,500.0,0.00010709,2]
[399737913,1766646202307,500.0,0.00010709,2]
[399737914,1766646202355,500.0,0.00010709,2]
[399737915,1766646202403,500.0,0.00010709,2]
[399737916,1766646202460,500.0,0.00010709,2]
[399737917,1766646202511,500.0,0.00010709,2]
[399737918,1766646202558,500.0,0.00010709,2]
[399737919,1766646202605,500.0,0.00010709,2]
[399737920,1766646202672,500.0,0.00010709,2]
[399737921,1766646202724,500.0,0.00010709,2]
[399737922,1766646202770,500.0,0.00010709,2]
[399737923,1766646202821,500.0,0.00010709,2]
[399737924,1766646202870,500.0,0.00010709,2]
[399737925,1766646202921,500.0,0.00010709,2]
[399737926,1766646202970,500.0,0.00010709,2]
[399737927,1766646203018,500.0,0.00010709,2]
[399737928,1766646203074,500.0,0.00010709,2]
[399737929,1766646203125,259.37832233,0.00010709,2]
[399737930,1766646203158,346.64172207,0.00010709,2]
[399737931,1766646203213,500.0,0.00010709,2]
[399737932,1766646203301,500.0,0.00010709,2]
[399737933,1766646215036,8653.36827793,0.000107,2]
[399737934,1766646215064,10000.01,0.000107,2]
[399737935,1766646215090,10000.01,0.000107,2]
[399737936,1766646224858,-3100.0,0.000107,2]
[399737953,1766646278880,-166.50933194,0.0001061,2]
[399737954,1766646278916,-300.0,0.00010699,2]
[399737955,1766646281723,-363.74708,0.00010557,2]
[399737961,1766646303396,-300.0,0.00010699,2]
[399737962,1766646303420,-300.0,0.00010699,2]
[399737963,1766646303444,-349.0,0.00010699,2]
[399737965,1766646305083,-851.0,0.00010699,2]
[399737968,1766646309196,-2500.0,0.0001061,2]
[399737973,1766646331522,-9500.01,0.000107,2]
[399737976,1766646446632,-184.37945223,0.00010609,2]
[399737977,1766646446664,-3376.8484,0.0001061,2]
[399737978,1766646446698,-184.37945222,0.0001061,2]
[399737979,1766646446730,-166.50933193,0.0001061,2]
[399737980,1766646446839,-2175.77672724,0.000107,2]
[399737981,1766646454954,-3859.1418484,0.000107,2]
[399737982,1766646454989,-500.0,0.00010708,2]
[399737983,1766646455031,-500.0,0.00010708,2]
[399737984,1766646455133,-281.7263032,0.00010708,2]
[399737985,1766646461023,-1580.3954,0.0001061,2]
[399737986,1766646461056,-145.78235299,0.00010708,2]
[399737987,1766646461087,-490.95102171,0.00010708,2]
[399737988,1766646461125,-500.0,0.00010708,2]
[399737989,1766646461156,-500.0,0.00010708,2]
[399737990,1766646461198,-500.0,0.00010708,2]
[399737991,1766646461235,-500.0,0.00010708,2]
[399737992,1766646461274,-500.0,0.00010708,2]
[399737993,1766646461437,-565.7524506,0.00010708,2]
[399737994,1766646494734,-300.0,0.00010707,2]
[399737995,1766646494768,-1200.0,0.00010707,2]
[399737996,1766646494801,-357.52275746,0.00010707,2]
[399737997,1766646494839,-6.94904987,0.00010708,2]
[399737998,1766646494877,-500.0,0.00010708,2]
[399737999,1766646494916,-500.0,0.00010708,2]
[399738000,1766646494956,-500.0,0.00010708,2]
[399738001,1766646495002,-500.0,0.00010708,2]
[399738002,1766646495043,-500.0,0.00010708,2]
[399738003,1766646495083,-500.0,0.00010708,2]
[399738004,1766646495314,-500.0,0.00010708,2]
[399738005,1766646495355,-500.0,0.00010708,2]
[399738006,1766646495396,-500.0,0.00010708,2]
[399738007,1766646495436,-500.0,0.00010708,2]
[399738008,1766646495480,-500.0,0.00010708,2]
[399738009,1766646495520,-500.0,0.00010708,2]
[399738010,1766646495559,-500.0,0.00010708,2]
[399738011,1766646495599,-500.0,0.00010708,2]
[399738012,1766646495637,-500.0,0.00010708,2]
[399738013,1766646495676,-500.0,0.00010708,2]
[399738014,1766646496303,-271.06638534,0.00010708,2]
[399738015,1766646496324,-0.01,0.00010708,2]
[399738018,1766646511163,-228.92361466,0.00010708,2]
[399738019,1766646511206,-517.16366944,0.00010708,2]
[399738020,1766646511247,-517.16366944,0.00010708,2]
[399738021,1766646511286,-517.16366944,0.00010708,2]
[399738022,1766646511326,-517.16366944,0.00010708,2]
[399738023,1766646511365,-517.16366944,0.00010708,2]
[399738024,1766646511405,-517.16366944,0.00010708,2]
[399738025,1766646511446,-517.16366944,0.00010708,2]
[399738026,1766646511488,-517.16366944,0.00010708,2]
[399738027,1766646511532,-517.16366944,0.00010708,2]
[399738028,1766646511665,-517.16366944,0.00010708,2]
[399738029,1766646511706,-517.16366944,0.00010708,2]
[399738030,1766646511745,-517.16366944,0.00010708,2]
[399738031,1766646511784,-517.16366944,0.00010708,2]
[399738032,1766646511823,-517.16366944,0.00010708,2]
[399738033,1766646511862,-517.16366944,0.00010708,2]
[399738034,1766646511903,-517.16366944,0.00010708,2]
[399738035,1766646511942,-517.16366944,0.00010708,2]
[399738036,1766646511981,-517.16366944,0.00010708,2]
[399738037,1766646512023,-173.90028064,0.00010708,2]
[399738038,1766646512149,-343.2633888,0.00010708,2]
[399738039,1766646512186,-517.16366944,0.00010708,2]
[399738040,1766646512221,-517.16366944,0.00010708,2]
[399738041,1766646512257,-517.16366944,0.00010708,2]
[399738042,1766646512292,-517.16366944,0.00010708,2]
[399738043,1766646512326,-517.16366944,0.00010708,2]
[399738044,1766646512362,-517.16366944,0.00010708,2]
[399738045,1766646512397,-517.16366944,0.00010708,2]
[399738046,1766646512433,-517.16366944,0.00010708,2]
[399738047,1766646512471,-517.16366944,0.00010708,2]
[399738048,1766646512576,-517.16366944,0.00010708,2]
[399738049,1766646512615,-517.16366944,0.00010708,2]
[399738050,1766646512945,-517.16366944,0.00010708,2]
[399738051,1766646512985,-517.16366944,0.00010708,2]
[399738052,1766646513024,-517.16366944,0.00010708,2]
[399738053,1766646513063,-517.16366944,0.00010708,2]
[399738054,1766646513101,-517.16366944,0.00010708,2]
[399738055,1766646513138,-517.16366944,0.00010708,2]
[399738056,1766646513176,-517.16366944,0.00010708,2]
[399738057,1766646513214,-173.90028064,0.00010708,2]
[399738058,1766646513335,-343.2633888,0.00010708,2]
[399738059,1766646513377,-517.16366944,0.00010708,2]
[399738060,1766646513418,-517.16366944,0.00010708,2]
[399738061,1766646513477,-517.16366944,0.00010708,2]